Cogmind - Beta 16 @@@ ROGUE MODE // 2025.11.17 @ 16:45:43 Player: C0-2MO Result: Destroyed by 77-KDO(R) with Subdweller Laser Performance ------------- Evolutions (0) 0 Regions Visited (2) 400 Robots Destroyed (0) 0 Value Destroyed (0) 0 Prototype IDs (0) 0 Alien Tech Used (0) 0 Bonus (0) 0 TOTAL SCORE: 400 Bonus ------- None Cogmind --------- Core Integrity 0/250 Matter 289/300 Energy 68/100 System Corruption 0% Temperature Cool (11) Movement Core (150) Ox2 Location -10/Subcaves Parts ------- > --- POWER (1) -------- (None) > --- PROPULSION (2) --- (None) > --- UTILITY (2) ------ (None) > --- WEAPON (2) ------- Subdweller Beam Cannon Light Assault Rifle > --- INVENTORY (5) ---- (None) Peak State ------------ > --- POWER ------------ (None) > --- PROPULSION ------- (None) > --- UTILITY ---------- (None) > --- WEAPON ----------- Subdweller Beam Cannon Light Assault Rifle > --- INVENTORY -------- (None) [Rating: 3] Favorites ----------- Power None Propulsion None Utility None Weapon Light Assault Rifle Energy Cannon Subdweller Beam Cannon Ballistic Gun Light Assault Rifle Build | -11 -10 -10 ------- Run | Yrd Mat Sub Slots Evolved . | . . . Power . | . . . Propulsion . | . . . Utility . | . . . Weapon . | . . . Parts Attached 3 | 2 . 1 Power . | . . . Engine . | . . . Core . | . . . Reactor . | . . . Propulsion . | . . . Treads . | . . . Leg . | . . . Wheel . | . . . Hover . | . . . Flight . | . . . Utility . | . . . Device . | . . . Storage . | . . . Processor . | . . . Hackware . | . . . Protection . | . . . Artifact . | . . . Weapon 3 | 2 . 1 Energy Gun . | . . . Energy Cannon 1 | . . 1 Ballistic Gun 2 | 2 . . Ballistic Cannon . | . . . Launcher . | . . . Special Weapon . | . . . Impact Weapon . | . . . Slashing Weapon . | . . . Piercing Weapon . | . . . Special Melee Weapon . | . . . Unidentified Prototypes . | . . . Parts Lost 1 | . . 1 Power . | . . . Propulsion . | . . . Utility . | . . . Weapon 1 | . . 1 Highest Loss Streak 1 | . . 1 To Critical Strikes . | . . . Average Backups . | . . . Power . | . . . Propulsion . | . . . Utility . | . . . Weapon . | . . . Tool/Special . | . . . Unused Backups . | . . . Power . | . . . Propulsion . | . . . Utility . | . . . Weapon . | . . . Tool/Special . | . . . Average Slot Usage (%) 23 | . 28 22 Ballistic Gun 23 | . 28 22 Peak Build Rating 3 | 2 2 3 Average Rating 1 | 1 2 1 On Entrance 1 | . 2 2 Avg Prop Armor Cover (%) . | . . . Naked Turns . | . . . Heaviest Build 2 | 2 2 2 Greatest Support 3 | 3 3 3 Greatest Overweight (x) . | . . . Average Overweight (x) . | . . . Largest Inventory Capacity 5 | 5 5 5 Average Capacity 5 | 5 5 5 Most Carried 1 | . . 1 Average Carried . | . . . Final Capacity 5 | 5 5 5 Final Carried . | . . . Class Distribution -------------------- 100% | Mutant Dominant Class ---------------- Mutant | -10/Materials Mutant | -10/Subcaves Resources | -11 -10 -10 ----------- Run | Yrd Mat Sub Matter Collected 220 | 220 . . Remotely . | . . . Salvage Created . | . . . Parts . | . . . Haulers Intercepted . | . . . Recyclers Shooed . | . . . Parts Field Recycled . | . . . Retrieved Matter . | . . . Parts Self-Destructed 10 | . . 10 Prevented . | . . . Parts Restored . | . . . Kills | -11 -10 -10 ------- Run | Yrd Mat Sub Combat Hostiles Destroyed . | . . . Classes Destroyed . | . . . Best Kill Streak . | . . . Combat Bots Only . | . . . Max Kills in Single Turn . | . . . Gunslinging . | . . . Exploded . | . . . Melee . | . . . Uniques/NPCs Destroyed . | . . . Combat | -11 -10 -10 -------- Run | Yrd Mat Sub Hostile Shots Fired 31 | . . 31 Missed 11 | . . 11 Hits 20 | . . 20 Projectile 20 | . . 20 Critical Strikes 1 | . . 1 Damage Taken 426 | . 7 419 Core 268 | . 7 261 Absorbed by Shields . | . . . Core Remaining (%) 100 | 100 . . Volleys Fired 1 | . . 1 Largest 2 | . . 2 Hottest 100 | . . 100 Shots Fired 2 | . . 2 Gun 1 | . . 1 Cannon 1 | . . 1 Launcher . | . . . Special . | . . . Kinetic 1 | . . 1 Thermal 1 | . . 1 Explosive . | . . . Electromagnetic . | . . . Robot Hit Streak . | . . . Robot Miss Streak . | . . . Penetration Max . | . . . Secondary Targets . | . . . Shots Hit Robots . | . . . Core Hits . | . . . Critical Kills . | . . . Critical Parts Destroyed . | . . . Critical Strikes . | . . . Melee Attacks . | . . . Impact . | . . . Slashing . | . . . Piercing . | . . . Sneak Attacks . | . . . Combat Hostiles . | . . . Follow-up Attacks . | . . . Damage Inflicted 15 | . 15 . Guns . | . . . Cannons . | . . . Explosions . | . . . Melee . | . . . Ramming 15 | . 15 . Kinetic . | . . . Thermal . | . . . Explosive . | . . . Electromagnetic . | . . . Impact . | . . . Slashing . | . . . Piercing . | . . . Highest Corruption . | . . . Average Corruption . | . . . Corruption Purged . | . . . Corruption Blocked . | . . . Overload Shots . | . . . Overflow Damage . | . . . Projectiles . | . . . Explosions . | . . . Melee . | . . . Knockbacks . | . . . Impact . | . . . Kinetic . | . . . Secondary . | . . . Self-Inflicted Damage 7 | . 7 . Shots . | . . . Rammed 1 | . 1 . Targets Rammed 1 | . 1 . Kicked . | . . . Crushed . | . . . Highest Temperature 5 | . . 5 Average Temperature 5 | . . 5 Received Heat Transfer 69 | . . 69 Siege Activations . | . . . Martial Activations . | . . . Shielding Activations . | . . . Robots Disrupted . | . . . Combat Hostiles . | . . . Robots Corrupted . | . . . Combat Hostiles . | . . . Parts Fried . | . . . Impact Corruptions . | . . . Robots Melted . | . . . Combat Hostiles . | . . . Parts Melted . | . . . Heat Transferred . | . . . Parts Sabotaged . | . . . Parts Stolen . | . . . Parts Stripped . | . . . Power Chain Reactions . | . . . Alert | -11 -10 -10 ------- Run | Yrd Mat Sub Maximum Alert Level . | . . . Low Security (%) 100 | 100 100 . Level 1 . | . . . Level 2 . | . . . Level 3 . | . . . Level 4 . | . . . Level 5 . | . . . High Security . | . . . Max Security . | . . . Peak Influence 6 | . 6 . Initial . | . . . Average 1 | . 2 . Influence Increases 6 | . 6 . Successful Hack 6 | . 6 . Influence Decreases 6 | . 6 . Time Decay 6 | . 6 . Squads Dispatched 1 | . 1 . Investigation 1 | . 1 . Extermination . | . . . Reinforcement . | . . . Assault . | . . . Garrison . | . . . Intercept . | . . . Searches Triggered . | . . . Construction Impeded . | . . . Haulers Reinforced . | . . . Active Scanning Responses . | . . . Cargo Convoy Interrupts . | . . . Stealth | -11 -10 -10 --------- Run | Yrd Mat Sub Distress Signals . | . . . Communications Jammed . | . . . Distress Signals . | . . . Times Spotted 20 | . 1 19 Peak Tracking Total 8 | . 1 8 Tactical Retreats 4 | . . 4 Traps | -11 -10 -10 ------- Run | Yrd Mat Sub Traps Triggered . | . . . Indirectly . | . . . Trap Hack Attempts . | . . . Triggered . | . . . Disarmed . | . . . Reprogrammed . | . . . Reused . | . . . Traps Extracted . | . . . Installed . | . . . Triggered . | . . . Machines | -11 -10 -10 ---------- Run | Yrd Mat Sub Machines Disabled . | . . . Max in Single Turn . | . . . Machines Repaired . | . . . Machines Dismantled . | . . . Machines Sabotaged . | . . . Overloaded Fab Kills . | . . . Hacking | -11 -10 -10 --------- Run | Yrd Mat Sub Machines Accessed 1 | . 1 . Terminals 1 | . 1 . Fabricators . | . . . Repair Stations . | . . . Recycling Units . | . . . Scanalyzers . | . . . Garrison Access . | . . . Total Hacks 5 | . 5 . Successful 3 | . 3 . Failed 2 | . 2 . Catastrophic . | . . . Database Lockouts . | . . . Manual 5 | . 5 . Terminals 5 | . 5 . Fabricators . | . . . Repair Stations . | . . . Recycling Units . | . . . Scanalyzers . | . . . Garrison Access . | . . . Terminal Hacks 2 | . 2 . Robot Analysis 2 | . 2 . Fabricator Hacks . | . . . Repair Station Hacks . | . . . Recycling Unit Hacks . | . . . Scanalyzer . | . . . Garrison Access Hacks . | . . . Unauthorized Hacks 1 | . 1 . Terminals 1 | . 1 . Botnet 1 | . 1 . Fabricators . | . . . Repair Stations . | . . . Recycling Units . | . . . Scanalyzers . | . . . Garrison Access . | . . . Data Cores Recovered . | . . . Used . | . . . Hacking Detections . | . . . Full Trace Events . | . . . Feedback Events . | . . . Feedback Blocked . | . . . Robot Schematics Acquired . | . . . Robots Built . | . . . Authchips . | . . . Time . | . . . Total Robot Build Rating . | . . . Part Schematics Acquired . | . . . Parts Built . | . . . Authchips . | . . . Time . | . . . Total Part Build Rating . | . . . Part Studies Acquired . | . . . Parts Repaired . | . . . Time . | . . . Parts Recycled . | . . . Recycled Matter . | . . . Retrieved Matter . | . . . Retrieved Components . | . . . Parts Scanalyzed . | . . . Part Schematics Acquired . | . . . Parts Damaged . | . . . Bothacking | -11 -10 -10 ------------ Run | Yrd Mat Sub Used RIF Installer . | . . . Robots Hacked . | . . . Non-combat . | . . . Combat . | . . . Robot Hacks Applied . | . . . Relay Couplers Released . | . . . Fabnet Peak Effective % . | . . . Robots Rewired . | . . . Allies Hacked . | . . . Hacks Repelled . | . . . Allies | -11 -10 -10 -------- Run | Yrd Mat Sub Total Allies . | . . . Largest Group . | . . . Highest-Rated Group . | . . . Highest-Rated Ally . | . . . Total Orders . | . . . Ally Attacks . | . . . Total Damage . | . . . Kills . | . . . Allies Corrupted . | . . . Allies Melted . | . . . Intel | -11 -10 -10 ------- Run | Yrd Mat Sub Active Infowar (turns) . | . . . Robot Analysis Total 2 | . 2 . Derelict Logs Recovered 3 | . . 3 Drone Launches . | . . . Drone Recoveries . | . . . Exploration | -11 -10 -10 ------------- Run | Yrd Mat Sub Turns Passed 288 | 15 32 241 Spaces Moved 538 | 24 61 453 Core 538 | 24 61 453 Treads . | . . . Legs . | . . . Wheels . | . . . Hover . | . . . Flight . | . . . Fastest Speed 50 | 50 50 50 Average Speed 50 | 50 50 50 Slowest Speed 50 | 50 50 50 Overloaded Moves . | . . . Propulsion Burnouts . | . . . Robots Hopped . | . . . Potential Cave-ins . | . . . Cave-ins Triggered . | . . . Exploration Rate (%) 16 | 4 17 29 Regions Visited 2 Branch Regions 1 Pre-discovered Areas 2 | . . 2 Known Exits Taken . | . . . Unknown Exits Taken 2 | 1 1 . Scrap Searched . | . . . Spaces Dug . | . . . Terrain Destroyed . | . . . Melee . | . . . Projectile . | . . . AOE . | . . . Terrain Rammed . | . . . Walls Destroyed . | . . . Machines Disabled . | . . . Actions | -11 -10 -10 --------- Run | Yrd Mat Sub Total 553 | 25 61 467 Wait 11 | . . 11 Move 536 | 23 60 453 Hop . | . . . Pick Up 1 | . . 1 Fast Attach 2 | 2 . . Attach 1 | . . 1 Detach . | . . . Swap . | . . . Drop . | . . . Fire 1 | . . 1 Melee . | . . . Ram 1 | . 1 . Kick . | . . . Crush . | . . . Escape Stasis . | . . . Rewire . | . . . Trap . | . . . Miscellaneous . | . . . Route ------- -11/Scrapyard -10/Materials -10/Subcaves History --------- Turn | Location | Event 8 | -11/Scrapyard | Discovered new exit (range 14) 16 | -11/Scrapyard | Entered Materials 17 | -10/Materials | Met a group of wandering Federalists 43 | -10/Materials | Discovered new exit (range 9) 48 | -10/Materials | Entered Subcaves 49 | -10/Subcaves | Approached by a straggling Scientist 50 | -10/Subcaves | Ambushed by Subdwellers from Twisted Machinery 51 | -10/Subcaves | Ambushed by Subdwellers from Twisted Machinery 64 | -10/Subcaves | Learned location of Zion (-7) 112 | -10/Subcaves | Learned location of Storage (-9) 192 | -10/Subcaves | Core integrity fell below 50% 208 | -10/Subcaves | Learned Materials terminal intel 230 | -10/Subcaves | A swath of the cavern ceiling suddenly collapsed 250 | -10/Subcaves | Core integrity fell below 20% 255 | -10/Subcaves | A swath of the cavern ceiling suddenly collapsed 289 | -10/Subcaves | Destroyed by 77-KDO(R) with Subdweller Laser Last Messages --------------- 00050_ 1S-73T(R) emerges from the Twisted Machinery. 00052_ OV-JET(c): "Hey, let me tag along and I can get us both out of this nasty situation. At least I think I can... The group I got separated from was talking about a shortcut back to the UFD." 00064_ Acquired derelict log, extracted data. World map updated: -7/Zion. 00094_ OV-JET(c) destroyed. 00112_ Acquired derelict log, extracted data. World map updated: -9/Storage. 00135_ Heat Sink fries itself beyond repair. 00141_ FE-XED(u) builds Twisted Machinery. 00193_ Lgt. Assault Rifle destroyed. 00208_ Acquired derelict log, extracted data. Data stored: Materials terminal intel. A swath of the cavern ceiling suddenly collapses. 00271_ Acquired Sub. Beam Cannon. Map ----- +----------------------------------------------------+ | ???????????????????????????????#####"### ## """"" | | ???????????????????????????????# # #"##" """"""" | | ??????????????????????????????# #"#"##"# """""" | | ???????????????????????????# ""#"#### """"" | | ???????????????????????????# ######??##"" "" | | ???????????????????????????# ???????#""## | | ????????????????????????##### ?????###""" # | | ???????????????????????## ### """??#### # " | | ???????????????????????# ### """?##" " ## # | | ???????????????????????# #### "?##"" " ##### | | ???????????????????????# #??????#""" " ##???# | | ???????????????????????# ###????##""" ##????? | | ???????????????????????# # ###### " ###?????? | | ???????????????????????# #"# ##???????? | | ???????????????????????## ## "##&" "#????????? | | ????????????????????????# ### " #????????? | | ????????????????????????## ### ##????????? | | ????????????????????????## ##?????????? | | ????????????????????????# ## ### ##??????????? | | ????????????????????????# ####?#####???????????? | | ????????????????????????# ##????????????????????? | | ????????????????????????## #????????????????????? | | ????????????????????????# ##????????????????????? | | ???????????????????????## #?????????????????????? | | ???????????????????#""## #?????????????????????? | | ???????????????????#""" R@ #?????????????????????? | | ???????????????????##" R "##?????????????????????? | | ????????????????????# " ###??????????????????????? | | ????????????????????# "#?????????????????????????? | | ??????????????????? ""??????????????????????????? | | ?????????????????? ???????????????????????????? | | ????????????????? " ????????????????????????????? | | ????????????????# ?"?????????????????????????????? | | ????????????????#????????????????????????????????? | | ?????????????????????????????????????????????????? | | ?????????????????????????????????????????????????? | | ?????????????????????????????????????????????????? | | ?????????????????????????????????????????????????? | | ??????????????????????????? ????###??????????????? | | ????????????????????????? #??## ###???????????? | | ????????????????????????# ??# ##?????????## | | ????????????????????????? #### #????????## | | ?????????????????????????? ### ##?????### | | ??????????????????????????# #?# ###???# | | ?????????????????????????## #?# ##### | | ????????????????????????## #?# ## # | | ????????????????????????# """"### | | ????????????????????????# """""" " | | ????????????????????????????#" " "" ### # | | ????????????????????????????# """""""" ##?### | +----------------------------------------------------+ Best States ------------- Heat Dissipation 25 Energy Generation 5 Energy Capacity 100 Matter Stores 300 Matter Capacity 300 Sight Range 16 Terrain Scan Density 10 Evasion (%) 50 Item Schematics ----------------- None Robot Schematics ------------------ None Fabricated ------------ Nothing Repaired ---------- Nothing Studied --------- None Alien Tech Used ----------------- None Achievements -------------- None Challenges ------------ None Game ------ Seed CannonHardcellShovel Manual? 0 Play Time 00:04:32 Cumulative 675.2 hours Start 2025.11.17 @ 16:41:14 End 2025.11.17 @ 16:45:43 Sessions 1 Manual Loads 0 Difficulty Rogue Special Mode None Game No. 292 Rogue 292 Adventurer 0 Explorer 0 Win Type - Total 68 Types 36/4/11/4/6/1/0/3/0/3 Lore% 96 Gallery% 89 Achievement% 78 Wizard Run 0 Options --------- Layout 1 ASCII 0 Keyboard 0 Movement Numpad Keybinds 0 Fullscreen 1 Font 24/Smallcaps Map View 50x35 Zoom Use 0% Tactical HUD 1 Map Filters NONE Filters NONE Steam 1 RUN: f2a2554d-e9df-4c94-8e95-e946696c88c0